bitfinex/quotes_BTCUSD_20251114
["timestamp","ask_amount","ask_price","bid_price","bid_amount"]
[1763104695262,0.02029,97434.0,97433.0,0.00013639]
[1763104696701,0.04523,97434.0,97433.0,0.00013639]
[1763104697727,0.1478726,97434.0,97433.0,0.00013639]
[1763104697952,0.1488726,97434.0,97433.0,0.00013639]
[1763104698213,0.04823,97434.0,97433.0,0.00013639]
[1763104698345,0.04723,97434.0,97433.0,0.00013639]
[1763104698566,0.1458726,97434.0,97433.0,0.00013639]
[1763104698767,0.1478726,97434.0,97433.0,0.00013639]
[1763104699136,0.1498726,97434.0,97433.0,0.00013639]
[1763104699285,0.1478726,97434.0,97433.0,0.00013639]
[1763104700228,0.1458726,97434.0,97433.0,0.00013639]
[1763104700372,0.1458726,97434.0,97433.0,0.00113639]
[1763104700571,0.1458726,97434.0,97433.0,0.00013639]
[1763104701014,0.1458726,97434.0,97433.0,0.00113639]
[1763104701249,0.4688726,97434.0,97433.0,0.00113639]
[1763104701430,0.4688726,97434.0,97433.0,0.00013639]
[1763104701728,0.4688726,97434.0,97433.0,0.00113639]
[1763104702272,0.20535778,97391.0,97390.0,0.0004]
[1763104702467,0.22564778,97391.0,97390.0,0.00053682]
[1763104702673,0.04523,97391.0,97390.0,0.02053682]
[1763104702880,0.04523,97391.0,97390.0,0.00053682]
[1763104703596,0.1458726,97391.0,97390.0,0.00053682]
[1763104704407,0.1478726,97391.0,97390.0,0.00053682]
[1763104704527,0.02229,97391.0,97390.0,0.00053682]
[1763104704729,0.02229,97391.0,97390.0,0.02053682]
[1763104704954,0.25058778,97391.0,97390.0,0.00053682]
[1763104705167,0.04523,97391.0,97390.0,0.02053682]
[1763104705363,0.04523,97391.0,97390.0,0.02153682]
[1763104705566,0.04523,97391.0,97390.0,0.00053682]
[1763104705804,0.04523,97391.0,97390.0,0.02053682]
[1763104706968,0.04723,97391.0,97390.0,0.02053682]
[1763104707376,0.04523,97391.0,97390.0,0.02053682]
[1763104707513,0.04723,97391.0,97390.0,0.02053682]
[1763104707937,0.02029,97391.0,97390.0,0.02053682]
[1763104708252,0.02229,97391.0,97390.0,0.00053682]
[1763104708578,0.22764778,97391.0,97390.0,0.00053682]
[1763104709174,0.04723,97391.0,97390.0,0.00053682]
[1763104709377,0.04923,97391.0,97390.0,0.00053682]
[1763104709715,0.25458778,97391.0,97390.0,0.00053682]
[1763104709931,0.04923,97391.0,97390.0,0.00053682]
[1763104710270,0.04979,97391.0,97390.0,0.00053682]
[1763104710477,0.25514778,97391.0,97390.0,0.00053682]
[1763104712310,0.57814778,97391.0,97390.0,0.00053682]
[1763104712849,0.57814778,97391.0,97350.0,0.00999999]
[1763104712850,0.20544216,97351.0,97350.0,0.02]
[1763104713023,0.20544216,97351.0,97350.0,0.02045628]
[1763104713024,0.24913216,97351.0,97350.0,0.02045628]
[1763104714026,0.25013216,97351.0,97350.0,0.02045628]
[1763104714225,0.25013216,97351.0,97350.0,0.00045628]
[1763104714427,0.24913216,97351.0,97350.0,0.00045628]
[1763104714630,0.25113216,97351.0,97350.0,0.00045628]
[1763104714760,0.25313216,97351.0,97350.0,0.00045628]
[1763104714974,0.25113216,97351.0,97350.0,0.00045628]
[1763104715211,0.24913216,97351.0,97350.0,0.00045628]
[1763104715562,0.25113216,97351.0,97350.0,0.00045628]
[1763104716360,0.04769,97351.0,97340.0,0.05039997]
[1763104716562,0.23096326,97341.0,97340.0,0.02050273]
[1763104716983,0.0376,97350.0,97340.0,0.04050271]
[1763104717184,0.24304638,97350.0,97340.0,0.0305027]
[1763104717392,0.02019,97351.0,97340.0,0.0305027]
[1763104717619,0.02019,97351.0,97350.0,0.02]
[1763104718041,0.1006426,97388.0,97340.0,0.0305027]
[1763104718042,0.1006426,97388.0,97340.0,0.30725561]
[1763104718043,0.002,97341.0,97340.0,0.30725561]
[1763104718247,0.002,97341.0,97340.0,0.04392147]
[1763104718456,0.002,97341.0,97340.0,0.24938473]
[1763104718658,0.002,97341.0,97340.0,0.32548152]
[1763104719303,0.001,97341.0,97340.0,0.32548152]
[1763104719519,0.001,97341.0,97340.0,0.24938473]
[1763104719971,0.001,97341.0,97340.0,0.57238473]
[1763104720208,0.001,97341.0,97340.0,0.88903273]
[1763104720446,0.001,97341.0,97340.0,1.134556]
[1763104720656,0.001,97341.0,97340.0,1.15143452]
[1763104720865,0.001,97341.0,97340.0,1.2551039]
[1763104721560,0.50329738,97619.0,97340.0,1.2551039]
[1763104721561,0.50329738,97619.0,97410.0,0.03999998]
[1763104721562,0.0376,97417.0,97410.0,0.03999998]
[1763104721782,0.20531048,97414.0,97410.0,0.02999999]
[1763104721994,0.20531562,97411.0,97410.0,0.02999999]
[1763104722205,0.22444752,97411.0,97410.0,0.02999999]
[1763104722410,0.0191319,97411.0,97410.0,0.02999999]
[1763104722846,0.01958755,97411.0,97410.0,0.00999999]
[1763104723057,0.00045565,97411.0,97410.0,0.00999999]
[1763104723271,0.22490764,97411.0,97410.0,0.00999999]
[1763104723485,0.01959202,97411.0,97410.0,0.00999999]
[1763104723691,0.00045565,97411.0,97409.0,0.20531775]
[1763104723901,0.00045565,97411.0,97407.0,0.20532316]
[1763104724561,0.00045565,97411.0,97403.0,0.20533089]
[1763104724562,0.00045565,97411.0,97409.0,0.20531918]
[1763104724986,0.00045565,97411.0,97404.0,0.04341874]
[1763104724987,0.20532924,97405.0,97404.0,0.04341874]
[1763104725201,0.20533527,97402.0,97400.0,0.00999999]
[1763104725462,0.2053367,97401.0,97400.0,0.02999997]
[1763104725669,0.0255,97401.0,97400.0,0.01]
[1763104726108,0.0376,97408.0,97392.0,0.20535368]
[1763104726305,0.20533459,97402.0,97400.0,0.01999998]
[1763104726552,0.0376,97408.0,97390.0,0.02999997]
[1763104726807,0.0376,97408.0,97400.0,0.01999998]
[1763104726808,0.01916116,97407.0,97400.0,0.01999998]
[1763104726981,0.20535639,97392.0,97387.0,0.1006426]
[1763104727394,0.20536411,97388.0,97386.0,0.323]
[1763104727602,0.02845588,97410.0,97380.0,0.00999999]
[1763104727603,0.20537658,97383.0,97380.0,0.00999999]
[1763104727894,0.20535688,97392.0,97390.0,0.02999997]
[1763104728070,0.20535688,97392.0,97390.0,0.01999998]
[1763104728279,0.20535193,97394.0,97386.0,0.20536752]
[1763104728521,0.20535193,97394.0,97380.0,0.02999997]
[1763104728522,0.001,97392.0,97391.0,0.20535653]
[1763104728944,0.001,97392.0,97391.0,0.24877527]
[1763104729157,0.002,97392.0,97391.0,0.24877527]
[1763104729326,0.002,97392.0,97383.0,0.2053736]
[1763104729524,0.20635657,97392.0,97387.0,0.04341874]
[1763104729724,0.002,97392.0,97384.0,0.04341874]
[1763104730137,0.20534468,97398.0,97387.0,0.04341874]
[1763104730338,0.20536094,97390.0,97386.0,0.323]
[1763104730540,0.002,97392.0,97388.0,0.20536059]
[1763104730885,0.002,97392.0,97386.0,0.04341874]
[1763104731094,0.20635597,97392.0,97385.0,0.323]
[1763104731274,0.20635597,97392.0,97386.0,0.04341874]
[1763104731275,0.20535778,97391.0,97386.0,0.04341874]
[1763104731683,0.001,97398.0,97390.0,0.22535932]
[1763104731684,0.20534513,97397.0,97390.0,0.22535932]
[1763104731844,0.001,97392.0,97391.0,0.20535778]
[1763104732186,0.20535089,97395.0,97390.0,0.02999999]
[1763104732394,0.02063509,97394.0,97382.0,0.1006426]
[1763104732593,0.001,97398.0,97382.0,0.1006426]
[1763104732594,0.2053656,97388.0,97383.0,0.323]
[1763104732809,0.20535469,97393.0,97383.0,0.323]
[1763104733147,0.1006426,97419.0,97383.0,0.323]
[1763104733148,0.2053367,97401.0,97400.0,0.02]
[1763104733342,0.20534965,97395.0,97390.0,0.02999997]
[1763104733579,0.0376,97412.0,97397.0,0.20534404]
[1763104733785,0.20533464,97402.0,97395.0,0.20534808]
[1763104734061,0.2053367,97401.0,97393.0,0.20535255]
[1763104734259,0.20533464,97402.0,97395.0,0.20534918]
[1763104735298,0.001,97401.0,97395.0,0.20534918]
[1763104735490,0.01126588,97410.0,97393.0,0.20535316]
[1763104735647,0.01126588,97410.0,97400.0,0.02999997]
[1763104735848,0.002,97402.0,97393.0,0.20535316]
[1763104736089,0.20533171,97404.0,97397.0,0.2053436]
[1763104736289,0.001,97402.0,97397.0,0.2053436]
[1763104736507,0.2053388,97400.0,97393.0,0.20535316]
[1763104736885,0.002,97401.0,97390.0,0.02999997]
[1763104737087,0.01819,97399.0,97390.0,0.02999997]
[1763104737266,0.20535765,97392.0,97390.0,0.00999999]
[1763104737490,0.20535765,97392.0,97383.0,0.04341874]
[1763104737491,0.20536403,97389.0,97383.0,0.04341874]
[1763104737706,0.20534513,97397.0,97383.0,0.04341874]
[1763104737931,0.22353222,97399.0,97393.0,0.20535292]
[1763104738140,0.001,97402.0,97400.0,0.02]
[1763104738358,0.2053367,97401.0,97400.0,0.02]
[1763104738566,0.2308367,97401.0,97400.0,0.02]
[1763104739184,0.2318367,97401.0,97400.0,0.02]
[1763104739608,0.2308367,97401.0,97400.0,0.02]
[1763104739941,0.2328367,97401.0,97400.0,0.02]
[1763104740994,0.2348367,97401.0,97400.0,0.02]
[1763104741495,0.01026694,97400.0,97390.0,0.02]
[1763104741669,0.24671778,97391.0,97390.0,0.02]
[1763104742432,0.04136,97391.0,97390.0,0.02]
[1763104742644,0.002,97400.0,97390.0,0.04999997]
[1763104742867,0.002,97400.0,97397.0,0.20534361]
[1763104743069,0.001,97400.0,97399.0,0.20534091]
[1763104744010,0.00045565,97411.0,97407.0,0.20532326]
[1763104744214,0.00045565,97411.0,97409.0,0.20531885]
[1763104744432,0.04136,97408.0,97401.0,0.04341874]
[1763104744637,0.04136,97408.0,97400.0,0.02999997]
[1763104744638,0.20533391,97403.0,97400.0,0.03999997]
[1763104744839,0.02326,97401.0,97400.0,0.00999999]
[1763104745394,0.20533391,97403.0,97400.0,0.00999999]
[1763104745762,0.20535496,97393.0,97390.0,0.01999998]
[1763104745964,0.0181,97408.0,97390.0,0.00999999]
[1763104746167,0.20535497,97394.0,97390.0,0.01999998]
[1763104746409,0.0368,97407.0,97400.0,0.02]
[1763104746749,0.2285967,97401.0,97400.0,0.02]
[1763104747171,0.2305967,97401.0,97400.0,0.02]
[1763104747497,0.2285967,97401.0,97400.0,0.02]
[1763104748096,0.02326,97401.0,97400.0,0.02]
[1763104748342,0.002,97401.0,97400.0,0.02999997]
[1763104748540,0.2053388,97400.0,97393.0,0.20535275]
[1763104749170,0.004,97401.0,97390.0,0.02999997]
[1763104749370,0.004,97401.0,97400.0,0.02]
[1763104749371,0.2093367,97401.0,97400.0,0.02]
[1763104749654,0.002,97401.0,97390.0,0.02999997]
[1763104750079,0.03747,97418.0,97390.0,0.02999997]
[1763104750080,0.01026483,97420.0,97399.0,0.323]
[1763104750081,0.001,97400.0,97399.0,0.323]
[1763104750296,0.001,97400.0,97399.0,0.44985146]
[1763104750508,0.01026272,97440.0,97399.0,0.44985146]
[1763104750509,0.01026272,97440.0,97400.0,0.57175754]
[1763104750510,0.001,97401.0,97400.0,0.57175754]
[1763104750724,0.01026167,97450.0,97410.0,0.57173646]
[1763104750931,0.20525705,97439.0,97410.0,0.36641874]
[1763104751141,0.20530425,97417.0,97410.0,0.04341874]
[1763104751340,0.01752,97431.0,97400.0,0.00999999]
[1763104751341,0.20533251,97403.0,97400.0,0.00999999]
[1763104751637,0.02103164,97411.0,97410.0,0.02]
[1763104751840,0.00045565,97411.0,97410.0,0.02]
[1763104752288,0.00045565,97411.0,97403.0,0.20533077]
[1763104752785,0.00045565,97411.0,97401.0,0.04341874]
[1763104753141,0.20532881,97405.0,97401.0,0.04341874]
[1763104753346,0.20533761,97401.0,97393.0,0.20535332]
[1763104753548,0.00045565,97411.0,97400.0,0.20533848]
[1763104753731,0.00045565,97411.0,97410.0,0.02]
[1763104753928,0.00145565,97411.0,97410.0,0.02]
[1763104754303,0.00045565,97411.0,97410.0,0.02]
[1763104754503,0.00045565,97411.0,97407.0,0.20532332]
[1763104754872,0.00045565,97411.0,97409.0,0.20531907]
[1763104755079,0.00045565,97411.0,97403.0,0.20533049]
[1763104755255,0.00245565,97411.0,97405.0,0.20532746]
[1763104755436,0.20877196,97411.0,97405.0,0.20532746]
[1763104755644,0.00345565,97411.0,97405.0,0.20532746]
[1763104755857,0.00345565,97411.0,97407.0,0.20532349]
[1763104756079,0.00345565,97411.0,97410.0,0.36641874]
[1763104756283,0.00145565,97411.0,97410.0,0.36641874]
[1763104756489,0.00045565,97411.0,97410.0,0.36641874]
[1763104756690,0.00245565,97411.0,97410.0,0.36641874]
[1763104756941,0.00145565,97411.0,97410.0,0.36641874]
[1763104757173,0.00145565,97411.0,97410.0,0.47008812]
[1763104757322,0.00245565,97411.0,97410.0,0.47008812]
[1763104757527,0.00245565,97411.0,97410.0,0.36641874]
[1763104757710,0.00245565,97411.0,97410.0,1.38134474]
[1763104757920,0.00245565,97411.0,97410.0,1.09424874]
[1763104758121,0.00245565,97411.0,97410.0,1.11282605]
[1763104758328,0.00145565,97411.0,97410.0,1.11282605]
[1763104758570,0.00145565,97411.0,97410.0,1.09424874]
[1763104758772,0.00145565,97411.0,97410.0,0.36641874]
[1763104758930,0.00145565,97411.0,97410.0,0.68869988]
[1763104759804,0.00045565,97411.0,97410.0,0.70412585]
[1763104760574,0.00010341,97411.0,97410.0,0.70412585]
[1763104760772,0.00010341,97411.0,97410.0,0.70512585]
[1763104761002,2.348e-05,97411.0,97410.0,0.70412585]
[1763104761420,2.348e-05,97411.0,97410.0,0.70512585]
[1763104762245,2.348e-05,97411.0,97410.0,0.001]
[1763104762651,2.348e-05,97411.0,97410.0,0.4246426]
[1763104762926,2.348e-05,97411.0,97410.0,0.46806134]
[1763104763135,2.348e-05,97411.0,97410.0,0.46706134]
[1763104763770,2.348e-05,97411.0,97410.0,0.14406134]
[1763104766833,2.348e-05,97411.0,97410.0,0.1006426]
[1763104767272,0.20532035,97409.0,97400.0,0.02999997]
[1763104767456,0.20532573,97407.0,97400.0,0.35299997]
[1763104767590,0.20532035,97409.0,97401.0,0.2053367]
[1763104767791,0.00102348,97411.0,97404.0,0.323]
[1763104768057,0.00102348,97411.0,97405.0,0.01617146]
[1763104768309,2.348e-05,97411.0,97405.0,0.20532759]
[1763104768525,2.348e-05,97411.0,97404.0,0.323]
[1763104768945,2.348e-05,97411.0,97402.0,0.323]
[1763104769092,2.348e-05,97411.0,97404.0,0.323]
[1763104769275,0.00102348,97411.0,97409.0,0.20531964]
[1763104769691,0.00102348,97411.0,97407.0,0.20532371]
[1763104770066,2.348e-05,97411.0,97407.0,0.20532371]
[1763104770315,0.20494211,97426.0,97420.0,0.02]
[1763104770513,0.20529454,97421.0,97420.0,0.02]
[1763104770720,0.0001366,97426.0,97420.0,0.03999998]
[1763104770894,0.0001366,97426.0,97420.0,0.02999997]
[1763104771158,0.20529267,97422.0,97420.0,0.00999999]
[1763104772175,0.001,97421.0,97420.0,0.00999999]
[1763104772410,0.001,97421.0,97420.0,0.22682754]
[1763104772555,0.002,97421.0,97420.0,0.59324628]
[1763104772755,0.0001366,97426.0,97425.0,0.20528611]
[1763104773095,0.002,97422.0,97420.0,0.04341874]
[1763104773295,0.002,97422.0,97421.0,0.323]
[1763104773498,0.0001366,97426.0,97420.0,0.00999999]
[1763104773734,0.001,97421.0,97420.0,0.00999999]
[1763104774087,0.20629324,97422.0,97420.0,0.00999999]
[1763104774336,0.20529324,97422.0,97420.0,0.00999999]
[1763104774454,0.20529876,97419.0,97414.0,0.1457]
[1763104774654,0.01816,97421.0,97414.0,0.1457]
[1763104774874,0.0011366,97426.0,97422.0,0.20529035]
[1763104775073,0.0001366,97426.0,97425.0,0.20528611]
[1763104775696,0.0001366,97426.0,97425.0,0.65682136]
[1763104775899,0.0011366,97426.0,97425.0,0.65682136]
[1763104776300,0.0001366,97426.0,97425.0,0.65682136]
[1763104776589,0.0011366,97426.0,97425.0,0.65682136]
[1763104776811,0.0001366,97426.0,97425.0,0.65682136]
[1763104777204,0.0021366,97426.0,97425.0,0.65682136]
[1763104777411,0.0021366,97426.0,97425.0,0.80252136]
[1763104777616,0.0011366,97426.0,97425.0,0.80252136]
[1763104777816,0.0011366,97426.0,97425.0,1.34525336]
[1763104778020,0.0021366,97426.0,97425.0,1.34525336]
[1763104778219,0.0021366,97426.0,97425.0,1.19955336]
[1763104778417,0.0001366,97426.0,97425.0,1.19955336]
[1763104778651,0.0001366,97426.0,97425.0,1.20994727]
[1763104779032,0.0001366,97426.0,97425.0,1.19955336]
[1763104779434,0.0001366,97426.0,97425.0,0.89611685]
[1763104779606,0.0001366,97426.0,97425.0,0.87820185]
[1763104780279,0.0001366,97426.0,97425.0,0.83924285]
[1763104780438,0.0001366,97426.0,97425.0,0.83824285]
[1763104781187,0.20520054,97466.0,97460.0,0.01999998]
[1763104781386,0.20533724,97466.0,97460.0,0.01999998]
[1763104781827,0.20521028,97461.0,97460.0,0.01999998]
[1763104782010,0.20520397,97464.0,97458.0,0.20521588]
[1763104782146,0.0001367,97466.0,97460.0,0.22521096]
[1763104782366,0.0001367,97466.0,97460.0,0.01999998]
[1763104782922,0.0001367,97466.0,97463.0,0.20520513]
[1763104783049,0.0001367,97466.0,97462.0,0.20520818]
[1763104783050,0.0011367,97466.0,97462.0,0.20520818]
[1763104783451,0.0011367,97466.0,97460.0,0.02999997]
[1763104783653,0.20521014,97462.0,97453.0,0.20522637]
[1763104783866,0.20521425,97460.0,97454.0,0.04341874]
[1763104784263,0.20521028,97461.0,97460.0,0.01999998]
[1763104784522,0.20522012,97457.0,97450.0,0.35299997]
[1763104784724,0.20521492,97459.0,97453.0,0.20522675]
[1763104784896,0.20522019,97457.0,97450.0,0.21523315]
[1763104785089,0.20522273,97456.0,97450.0,0.00999999]
[1763104785297,0.20621028,97462.0,97430.0,0.27371122]
[1763104785483,0.20522904,97453.0,97450.0,0.00999999]
[1763104785678,0.20523134,97451.0,97450.0,0.00999999]
[1763104786553,0.20522382,97455.0,97450.0,0.02999997]
[1763104786758,0.20522951,97452.0,97450.0,0.02999997]
[1763104786936,0.001,97451.0,97450.0,0.02999997]
[1763104787116,0.001,97451.0,97450.0,0.00999999]
[1763104787319,0.001,97451.0,97440.0,0.01999998]
[1763104787320,0.20524238,97446.0,97440.0,0.33299999]
[1763104787536,0.2052503,97442.0,97440.0,0.00999999]
[1763104787744,0.20525662,97440.0,97431.0,0.04341874]
[1763104787940,0.01816,97441.0,97431.0,0.04341874]
[1763104788293,0.20524182,97447.0,97435.0,0.20526498]
[1763104788294,0.20525042,97442.0,97435.0,0.20526498]
[1763104788496,0.01816,97443.0,97430.0,0.01999998]
[1763104788497,0.20526915,97434.0,97430.0,0.01999998]
[1763104788690,0.20526915,97434.0,97430.0,0.04341874]
[1763104788861,0.20526497,97436.0,97430.0,0.05341873]
[1763104789188,0.20526749,97434.0,97430.0,0.01999998]
[1763104789745,0.20526749,97434.0,97429.0,0.20527768]
[1763104789746,0.20626749,97434.0,97429.0,0.20527768]
[1763104789956,0.20526749,97434.0,97429.0,0.20527768]
[1763104790194,0.20526749,97434.0,97427.0,0.20528058]
[1763104790427,0.01816,97443.0,97430.0,0.00999999]
[1763104790629,0.01816,97443.0,97430.0,0.02999997]
[1763104790833,0.20525443,97441.0,97440.0,0.02]
[1763104791262,0.22987443,97441.0,97440.0,0.02]
[1763104792588,0.23187443,97441.0,97440.0,0.02]
[1763104792803,0.01026272,97440.0,97420.0,0.00999999]
[1763104793015,0.20529454,97421.0,97420.0,0.0201366]
[1763104793224,0.22345454,97421.0,97420.0,0.0201366]
[1763104793430,0.20529454,97421.0,97420.0,0.0201366]
[1763104793642,0.20528507,97426.0,97420.0,0.0201366]
[1763104793643,0.01816,97429.0,97420.0,0.03013657]
[1763104793907,0.20529222,97423.0,97420.0,0.03013657]
[1763104794123,0.20529454,97421.0,97420.0,0.0001366]
[1763104794340,0.22991454,97421.0,97420.0,0.0001366]
[1763104794548,0.22991454,97421.0,97420.0,0.0201366]
[1763104795404,0.02462,97421.0,97420.0,0.0201366]
[1763104795619,0.001,97423.0,97420.0,0.0201366]
[1763104795831,0.02562,97421.0,97420.0,0.0001366]
[1763104796254,0.02562,97421.0,97420.0,0.0201366]
[1763104796708,0.02662,97421.0,97420.0,0.0201366]
[1763104797125,0.02562,97421.0,97420.0,0.0201366]
[1763104797333,0.02462,97421.0,97420.0,0.0001366]
[1763104797546,0.02562,97421.0,97420.0,0.0001366]
[1763104797771,0.02662,97421.0,97420.0,0.0001366]
[1763104797975,0.02562,97421.0,97420.0,0.0001366]
[1763104798181,0.02662,97421.0,97420.0,0.0001366]
[1763104798602,0.02562,97421.0,97420.0,0.0001366]
[1763104798814,0.02762,97421.0,97420.0,0.0001366]
[1763104799038,0.02662,97421.0,97420.0,0.0001366]
[1763104799253,0.02762,97421.0,97420.0,0.0001366]
[1763104799685,0.02662,97421.0,97410.0,0.02]
[1763104799891,0.02662,97421.0,97390.0,0.00999999]
[1763104799892,0.20535778,97391.0,97390.0,0.02]
[1763104800110,0.24813778,97391.0,97390.0,0.02]
[1763104800462,0.04278,97391.0,97390.0,0.02]
[1763104800548,0.04278,97391.0,97380.0,0.00999999]
[1763104800549,0.01816,97408.0,97400.0,0.02999997]
[1763104800550,0.20532405,97407.0,97400.0,0.02999997]
[1763104800766,0.01816,97408.0,97405.0,0.2053273]
[1763104800982,0.20533396,97403.0,97400.0,0.00999999]
[1763104801198,0.20533396,97403.0,97390.0,0.01999998]
[1763104801413,0.01829657,97408.0,97380.0,0.27371649]
[1763104801414,0.001,97391.0,97381.0,0.30601967]
[1763104801648,0.01829657,97408.0,97394.0,0.20534984]
[1763104801649,0.03264,97402.0,97394.0,0.20534984]
[1763104801852,0.20533394,97404.0,97400.0,0.02]
[1763104802061,0.20533368,97403.0,97400.0,0.02]
[1763104802279,0.02186,97401.0,97400.0,0.02]
[1763104802495,0.001,97407.0,97406.0,0.20532616]
[1763104802710,0.001,97407.0,97406.0,0.2487449]
[1763104803006,0.00013657,97408.0,97407.0,0.36641874]
[1763104803244,0.00013657,97408.0,97407.0,2.47008812]
[1763104803454,3.106e-05,97408.0,97407.0,2.47008812]
[1763104804101,3.106e-05,97408.0,97407.0,0.96879774]
[1763104804321,3.106e-05,97408.0,97407.0,0.49949774]
[1763104804526,3.106e-05,97408.0,97407.0,0.36641874]
[1763104804956,0.02189106,97408.0,97407.0,0.36641874]
[1763104805165,3.106e-05,97408.0,97407.0,0.36641874]
[1763104805622,0.02189106,97408.0,97407.0,0.04341874]
[1763104806245,0.02189106,97408.0,97406.0,0.20532528]
[1763104806468,0.02186,97407.0,97406.0,0.20532528]
[1763104806687,0.02186,97407.0,97404.0,0.20532889]
[1763104806688,0.02186,97407.0,97401.0,0.2053367]
[1763104806905,3.106e-05,97408.0,97400.0,0.02999997]
[1763104806906,0.02186,97402.0,97400.0,0.20533863]
[1763104807116,0.02186,97401.0,97400.0,0.20533863]
[1763104808173,3.106e-05,97408.0,97407.0,0.20532405]
[1763104808585,0.001,97407.0,97401.0,0.04341874]
[1763104808793,0.02143,97402.0,97398.0,0.04341874]
[1763104808997,0.03456,97406.0,97401.0,0.2053367]
[1763104809196,0.03456,97406.0,97400.0,0.05341873]
[1763104809407,0.02143,97401.0,97400.0,0.04341874]
[1763104809614,0.02143,97401.0,97399.0,0.20534091]
[1763104809814,0.02143,97400.0,97399.0,0.20534091]
[1763104810221,0.02143,97400.0,97399.0,0.25647408]
[1763104810510,3.106e-05,97408.0,97405.0,0.20532826]
[1763104810729,0.03459106,97408.0,97400.0,0.00999999]
[1763104810930,0.03459106,97408.0,97405.0,0.2053269]
[1763104811480,3.106e-05,97408.0,97405.0,0.2053269]
[1763104812194,0.00103106,97408.0,97405.0,0.2053269]
[1763104812394,0.00103106,97408.0,97405.0,0.29122787]
[1763104812597,0.00103106,97408.0,97405.0,0.2053269]
[1763104812797,3.106e-05,97408.0,97407.0,1.11689479]
[1763104812975,0.00103106,97408.0,97407.0,0.36641874]
[1763104813184,3.106e-05,97408.0,97407.0,0.57174279]
[1763104813814,3.106e-05,97408.0,97407.0,0.72905579]
[1763104814027,0.01778,97426.0,97425.0,0.20528611]
[1763104814237,0.0393269,97426.0,97421.0,0.04341874]
[1763104814445,0.02143,97422.0,97421.0,0.04341874]
[1763104814662,0.0178969,97426.0,97422.0,0.20529243]
[1763104814860,0.0178969,97426.0,97425.0,0.20528611]
[1763104815938,0.0198969,97426.0,97425.0,0.20528611]
[1763104816195,0.0403269,97426.0,97424.0,0.20528822]
[1763104816398,0.02143,97424.0,97416.0,0.26344745]
[1763104816599,0.03456,97425.0,97420.0,0.01999998]
[1763104816757,0.03456,97425.0,97420.0,0.02999997]
[1763104816969,0.03456,97425.0,97421.0,0.20529454]
[1763104817147,0.02143,97422.0,97421.0,0.20529454]
[1763104818992,0.001,97422.0,97421.0,0.27694826]
[1763104819200,0.002,97422.0,97421.0,0.20529454]
[1763104819973,0.02343,97422.0,97421.0,0.20529454]
[1763104820621,0.002,97422.0,97421.0,0.95971428]
[1763104820804,0.002,97422.0,97421.0,1.38638366]
[1763104821167,0.002,97422.0,97421.0,0.87773966]
[1763104821362,0.001,97422.0,97421.0,0.87773966]
[1763104821928,0.0001169,97426.0,97425.0,1.13689485]
[1763104822115,0.03456,97469.0,97425.0,1.13689485]
[1763104822116,0.01778,97478.0,97460.0,0.02999997]
[1763104822117,0.03456,97475.0,97460.0,0.02999997]
[1763104822323,0.01778,97478.0,97471.0,0.20518923]
[1763104822324,0.01789693,97472.0,97471.0,0.20518923]
[1763104822593,0.01789693,97472.0,97471.0,0.24860797]
[1763104822594,0.00011693,97472.0,97471.0,0.24860797]
[1763104822809,0.00011693,97472.0,97471.0,0.48200297]
[1763104823269,0.00011693,97472.0,97471.0,0.24860797]
[1763104823475,0.00111693,97472.0,97471.0,0.43735797]
[1763104823697,0.00111693,97472.0,97471.0,0.84513316]
[1763104823901,0.00011693,97472.0,97471.0,0.84513316]
[1763104824536,0.00111693,97472.0,97471.0,0.84513316]
[1763104824949,0.00011693,97472.0,97471.0,0.84513316]
[1763104825068,0.00011693,97472.0,97471.0,0.84613316]
[1763104825718,0.00011693,97472.0,97471.0,0.76135797]
[1763104825970,0.00011693,97472.0,97465.0,0.20520186]
[1763104825971,0.02154693,97472.0,97464.0,0.20520191]
[1763104826186,0.02143,97471.0,97464.0,0.20520191]
[1763104826380,0.03921,97465.0,97462.0,0.20520615]
[1763104826563,0.02143,97463.0,97460.0,0.00999999]
[1763104826871,0.02143,97461.0,97456.0,0.20522081]
[1763104827166,0.20520607,97463.0,97451.0,0.20522952]
[1763104827399,0.02143,97456.0,97452.0,0.20522924]
[1763104827545,0.03456,97462.0,97455.0,0.20522292]
[1763104827937,0.001,97461.0,97459.0,0.20521261]
[1763104828348,0.01778,97465.0,97459.0,0.20521261]
[1763104828546,0.02143,97460.0,97451.0,0.04341874]
[1763104828745,0.02143,97460.0,97457.0,0.20521847]
[1763104829088,0.001,97462.0,97461.0,0.20521028]
[1763104829868,0.001,97462.0,97461.0,0.57162902]
[1763104830066,0.00011693,97472.0,97471.0,0.24860797]
[1763104830383,0.00011693,97472.0,97471.0,1.19259597]
[1763104830583,0.00011693,97472.0,97471.0,1.26107235]
[1763104831789,0.00111693,97472.0,97471.0,1.26107235]
[1763104833417,0.00011693,97472.0,97471.0,1.15740297]
[1763104833617,0.00011693,97472.0,97471.0,1.07221097]
[1763104833819,0.00011693,97472.0,97471.0,1.07321097]
[1763104834198,0.00011693,97472.0,97471.0,0.44272197]
[1763104834664,0.00011693,97472.0,97471.0,0.76472197]
[1763104834901,0.00011693,97472.0,97471.0,0.86939135]
[1763104835310,0.00011693,97472.0,97471.0,0.001]
[1763104835512,0.02112693,97472.0,97471.0,0.001]
[1763104836102,0.02112693,97472.0,97460.0,0.29344742]
[1763104836339,0.02101,97461.0,97450.0,0.27370912]
[1763104836537,0.02101,97461.0,97450.0,0.01026167]
[1763104836686,0.03461,97460.0,97450.0,0.03026165]
[1763104837016,0.01618,97451.0,97450.0,0.81632512]
[1763104837219,0.01618,97462.0,97460.0,0.01999998]
[1763104837437,0.01618,97462.0,97459.0,0.20521303]
[1763104837636,0.20521028,97461.0,97454.0,0.04341874]
[1763104837835,0.02101,97456.0,97454.0,0.54341874]
[1763104838054,0.02101,97456.0,97455.0,0.20522292]
[1763104838285,0.20522502,97454.0,97450.0,0.323]
[1763104838520,0.02101,97451.0,97443.0,0.20524734]
[1763104838699,0.205242,97446.0,97440.0,0.00999999]
[1763104838903,0.03719,97441.0,97430.0,0.00999999]
[1763104839077,0.01618,97432.0,97431.0,0.6006426]
[1763104839280,0.03719,97432.0,97431.0,0.1006426]
[1763104839689,0.01618,97441.0,97431.0,0.1006426]
[1763104839895,0.323,97457.0,97431.0,0.1006426]
[1763104839896,0.03461,97457.0,97450.0,0.23523131]
[1763104840101,0.03719,97451.0,97450.0,0.00999999]
[1763104841218,0.01618,97451.0,97449.0,0.2052349]
[1763104841580,0.00011691,97457.0,97456.0,0.20522081]
[1763104841779,0.00011691,97457.0,97450.0,0.02999997]
[1763104841780,0.02112691,97457.0,97450.0,0.01999998]